Workbook

Sheet Sheet1
A1: 6 Units of 5101 LINDSEY AVE, PICO RIVERA, CA
A2: EXPENSE SHEET
A3: Year 2018 | B3: JUN | C3: JUL | D3: AUG | E3: SEP | F3: OCT | G3: NOV | H3: DEC | I3: Yearly Total
A4: Management Fee | B4: 350 | C4: 350 | D4: 350 | E4: 350 | F4: 350 | G4: 350 | H4: 350 | I4: 350
A5: Landscape Fee | B5: 100 | C5: 100 | D5: 100 | E5: 100 | F5: 100 | G5: 100 | H5: 100 | I5: 100
A6: SCE | B6: 23.47 | C6: 37.28 | D6: 60.08 | E6: 55.39 | F6: 54.9 | G6: 57.13 | H6: 48.83 | I6: =SUM(B6:H6) -> 337.08
A7: GAS | B7: 350 | C7: 161.84 | D7: 125.88 | E7: 147.41 | F7: 141.76 | G7: 158.14 | H7: 204.66 | I7: =SUM(B7:H7) -> 1289.69
A8: WATER | C8: 115.76 | D8: 269.09 | F8: 51.14 | G8: 122.88 | H8: 284.41 | I8: =SUM(C8:H8) -> 843.28
A9: INSURANCE | B9: 2677 | I9: =SUM(B9:H9) -> 2677
A10: PROPERTY TAX | B10: 1629.94 | G10: 7011.32 | I10: =SUM(B10:H10) -> 8641.26
A11: Total | B11: =SUM(B4:B10) -> 5130.41 | C11: =SUM(C4:C10) -> 764.88 | D11: 905.05 | E11: 652.8 | F11: 697.8 | G11: 7799.47 | H11: 987.9 | I11: 14238.31
A14: Year 2019 | B14: JAN | C14: FEB | D14: MAR | E14: APR | F14: MAY | G14: JUN | H14: JUL | I14: AUG | J14: SEPT | K14: OCT | L14: NOV | M14: DEC | N14: Yearly Total
A15: Management Fee | B15: 350 | C15: 350 | D15: 350 | E15: 350 | F15: 350 | G15: 350 | H15: 350 | I15: 350 | J15: 350 | K15: 350 | L15: 350 | M15: 350 | N15: =SUM(B15:M15) -> 4200
A16: Landscape Fee | B16: 100 | C16: 100 | D16: 100 | E16: 100 | F16: 100 | G16: 100 | H16: 100 | I16: 100 | J16: 100 | K16: 100 | L16: 100 | M16: 100 | N16: =SUM(B16:M16) -> 1200
A17: SCE | B17: 40.05 | C17: 29.59 | D17: 48.72 | E17: 22.55 | F17: 25.5 | G17: 22.38 | H17: 34.78 | I17: 59.09 | J17: 77.24 | K17: 78.51 | L17: 27.36 | M17: 44.65 | N17: =SUM(B17:M17) -> 510.42
A18: GAS | B18: 246.39 | C18: 309.51 | D18: 26.13 | E18: 277.52 | F18: 264.56 | G18: 198.21 | H18: 150.09 | I18: 138.18 | J18: 129.82 | K18: 163.92 | L18: 188.5 | M18: 198.01 | N18: =SUM(B18:M18) -> 2290.84
A19: WATER | C19: 24.7 | D19: 173.63 | E19: 99.33 | F19: 134.78 | G19: 139.08 | H19: 149.83 | I19: 126.18 | J19: 141.23 | K19: 132.63 | L19: 154.13 | M19: 181.18 | N19: =SUM(B19:M19) -> 1456.7
A20: INSURANCE | I20: 3002 | N20: =SUM(B20:M20) -> 3002
A21: PROPERTY TAX | E21: 7011.32 | M21: 10630.58 | N21: =SUM(B21:M21) -> 17641.9
A22: Total | B22: =SUM(B15:B21) -> 736.44 | C22: =SUM(C15:C21) -> 813.8 | D22: 698.48 | E22: 7860.72 | F22: 874.84 | G22: 809.67 | H22: 784.7 | I22: 3775.45 | J22: 798.29 | K22: 825.06 | L22: 819.99 | M22: 11504.42 | N22: 30301.86
A25: Year 2020 | B25: JAN | C25: FEB | D25: MAR | E25: APR | F25: MAY | G25: JUN | H25: JUL | I25: AUG | J25: SEPT | K25: OCT | L25: NOV | M25: DEC | N25: Yearly Total
A26: Management Fee | B26: 350 | C26: 350 | D26: 350 | E26: 350 | F26: 350 | G26: 350 | H26: 350 | I26: 350 | J26: 350 | K26: 350 | L26: 350 | M26: 350 | N26: =SUM(B26:M26) -> 4200
A27: Landscape Fee | B27: 100 | C27: 100 | D27: 100 | E27: 100 | F27: 100 | G27: 100 | H27: 100 | I27: 100 | J27: 100 | K27: 100 | L27: 100 | M27: 100 | N27: =SUM(B27:M27) -> 1200
A28: SCE | B28: 59.59 | C28: 59.25 | D28: 43.44 | E28: 30.58 | F28: 43.97 | G28: 44.49 | H28: 49.88 | I28: 209.46 | J28: 253.85 | K28: 283.61 | L28: 167.34 | M28: 109.88 | N28: =SUM(B28:M28) -> 1355.34
A29: GAS | B29: 195.57 | C29: 153.78 | D29: 141.1 | E29: 89.88 | F29: 140.83 | G29: 139.63 | H29: 140.23 | I29: 105.3 | J29: 118.8 | K29: 138.25 | L29: 144.01 | M29: 148.92 | N29: =SUM(B29:M29) -> 1656.3
A30: WATER | C30: 343.91 | D30: 160.58 | E30: 130.48 | F30: 41.08 | G30: 126.18 | H30: 93.7 | I30: 217.73 | J30: 26.03 | K30: 121.88 | L30: 235.16 | M30: 115.43 | N30: 1612.16
A31: INSURANCE | I31: 3150 | J31: 0 | K31: 0 | L31: 0 | M31: 0 | N31: 3150
A32: PROPERTY TAX | E32: 10630.57 | I32: 0 | J32: 0 | K32: 0 | L32: 0 | M32: 10821.5 | N32: 21452.07
A33: Total | B33: =SUM(B26:B32) -> 705.16 | C33: =SUM(C26:C32) -> 1006.94 | D33: 795.12 | E33: 11331.51 | F33: 675.88 | G33: 760.3 | H33: 733.81 | I33: 4132.49 | J33: 848.68 | K33: 993.74 | L33: 996.51 | M33: 11645.73 | N33: 34625.87
A35: Year 2021 | B35: JAN | C35: FEB | D35: MAR | E35: APR | F35: MAY | G35: JUN | H35: JUL | I35: AUG | J35: SEP | K35: OCT | L35: NOV | M35: DEC | N35: Yearly Total
A36: Management Fee | B36: 350 | C36: 350 | D36: 350 | E36: 350 | F36: 350 | G36: 350 | H36: 350 | I36: 350 | J36: 350 | K36: 350 | L36: 350 | M36: 350 | N36: =SUM(B36:M36) -> 4200
A37: Landscape Fee | B37: 100 | C37: 100 | D37: 100 | E37: 100 | F37: 100 | G37: 100 | H37: 100 | I37: 100 | J37: 100 | K37: 100 | L37: 100 | M37: 100 | N37: =SUM(B37:M37) -> 1200
A38: SCE | B38: 227.55 | C38: 189.51 | D38: 212.21 | E38: 164.24 | F38: 71.96 | G38: 68.46 | H38: 153.98 | I38: 47.28 | J38: 44.13 | K38: 51.13 | L38: 45.68 | M38: 44.72 | N38: 1320.85
A39: GAS | B39: 140.21 | C39: 149.04 | D39: 139.56 | E39: 125.71 | F39: 67.42 | G39: 149.78 | H39: 163.67 | I39: 131.96 | J39: 135.78 | K39: 195.21 | L39: 159.78 | M39: 188.1 | N39: 1746.22
A40: WATER | B40: 106.83 | C40: 106.83 | D40: 98.58 | E40: 110.89 | F40: 219.9 | G40: 116.53 | H40: 16.92 | I40: 139.81 | J40: 139.09 | L40: 146.61 | M40: 157.89 | N40: 1359.88
A41: INSURANCE | B41: 6393.22 | N41: 6393.22
A42: PROPERTY TAX | E42: 10821.5 | M42: 10684.39 | N42: 21505.89
A43: Total | B43: =SUM(B36:B42) -> 7317.81 | C43: =SUM(C36:C42) -> 895.38 | D43: 900.35 | E43: 11672.34 | F43: 809.28 | G43: 784.77 | H43: 784.57 | I43: 769.05 | J43: 769 | K43: 696.34 | L43: 802.07 | M43: 11525.1 | N43: 37726.06
A45: Year 2022 | B45: JAN | C45: FEB | D45: MAR | E45: APR | F45: MAY | G45: JUN | H45: JUL | I45: AUG | J45: SEP | K45: OCT | L45: NOV | M45: DEC
A46: Management Fee | B46: 450 | C46: 450 | D46: 450 | E46: 450 | F46: 450 | G46: 450 | H46: 450 | I46: 450 | J46: 450 | K46: 450 | L46: 450 | M46: 450 | N46: =SUM(B46:M46) -> 5400
A47: Landscape Fee | B47: 100 | C47: 100 | D47: 100 | E47: 100 | F47: 100 | G47: 100 | H47: 100 | I47: 100 | J47: 100 | K47: 100 | L47: 100 | M47: 100 | N47: =SUM(B47:M47) -> 1200
A48: SCE | B48: 44.7 | C48: 248.38 | D48: 86.94 | E48: 88.23 | F48: 50.92 | G48: 169.17 | H48: 696.41 | J48: 54.19 | K48: 90.4 | M48: 18.21 | N48: 1547.55
A49: GAS | B49: 242.96 | C49: 759.42 | D49: 302.84 | E49: 177.89 | F49: 556.66 | G49: 150 | H49: 301.13 | I49: 170.62 | J49: 142.81 | K49: 156.79 | L49: 479.21 | M49: 371.18 | N49: 3811.51
A50: WATER | B50: 163.53 | D50: 180.45 | E50: 174.01 | F50: 369.78 | I50: 107.77 | J50: 160.89 | L50: 309.78 | M50: 140.89 | N50: 1607.1
A51: INSURANCE | F51: 6491.61 | N51: 6491.61
A52: PROPERTY TAX | E52: 10684.37 | M52: 10684.37 | N52: 21368.74
A53: Total | B53: =SUM(B46:B52) -> 1001.19 | C53: =SUM(C46:C52) -> 1557.8 | D53: 1120.23 | E53: 11674.5 | F53: 8018.97 | G53: 869.17 | H53: 1547.54 | I53: 828.39 | J53: 907.89 | K53: 797.19 | L53: 1338.99 | M53: 11764.65 | N53: 41426.51
A55: Year 2023 | B55: JAN | C55: FEB | D55: MAR | E55: APR | F55: MAY | G55: JUN | H55: JUL | I55: AUG | J55: SEP | K55: OCT | L55: NOV | M55: DEC
A56: Management Fee | B56: 450 | C56: 450 | D56: 450 | E56: 450 | F56: 450 | G56: 450 | H56: 450 | I56: 450 | J56: 450 | K56: 450 | L56: 450 | M56: 450 | N56: =SUM(B56:M56) -> 5400
A57: Landscape Fee | B57: 100 | C57: 100 | D57: 100 | E57: 100 | F57: 100 | G57: 100 | H57: 100 | I57: 100 | J57: 100 | K57: 100 | L57: 100 | M57: 100 | N57: =SUM(B57:M57) -> 1200
A58: SCE | B58: 38.45 | C58: 33.27 | E58: 34.25 | F58: 38.8 | G58: 89.47 | H58: 258.38 | I58: 403.48 | J58: 90.33 | K58: 307.66 | L58: 183.26 | M58: 170.84 | N58: 1648.19
A59: GAS | B59: 789.14 | C59: 395.89 | E59: 508.99 | F59: 774.77 | G59: 221.75 | H59: 149.44 | I59: 422.95 | J59: 316.95 | L59: 150.33 | M59: 306.53 | N59: 4036.74
A60: WATER | B60: 114.89 | C60: 277.78 | D60: 144.89 | E60: 128.66 | F60: 263.68 | G60: 131.5 | H60: 166.82 | I60: 163.3 | J60: 371.8 | K60: 560.54 | L60: 176.02 | M60: 154.82 | N60: 2654.7
A61: INSURANCE | F61: 6975 | N61: 6975
A62: PROPERTY TAX | E62: 10961.84 | M62: 11474.66 | N62: 22436.5
A63: Total | B63: =SUM(B56:B62) -> 1492.48 | C63: =SUM(C56:C62) -> 1256.94 | D63: 694.89 | E63: 12183.74 | F63: 8602.25 | G63: 992.72 | H63: 1124.64 | I63: 1539.73 | J63: 1329.08 | K63: 1418.2 | L63: 1059.61 | M63: 12656.85 | N63: 44351.13
A65: Year 2024 | B65: JAN | C65: FEB | D65: MAR | E65: APR | F65: MAY | G65: JUN | H65: JUL | I65: AUG | J65: SEP | K65: OCT | L65: NOV | M65: DEC
A66: Management Fee | B66: 450 | C66: 450 | D66: 450 | E66: 450 | F66: 450 | G66: 450 | H66: 450 | I66: 450 | J66: 450 | K66: 450 | L66: 450 | M66: 450 | N66: =SUM(B66:M66) -> 5400
A67: Landscape Fee | B67: 100 | C67: 100 | D67: 100 | E67: 100 | F67: 100 | G67: 100 | H67: 100 | I67: 100 | J67: 100 | K67: 100 | L67: 100 | M67: 100 | N67: =SUM(B67:M67) -> 1200
A68: SCE | B68: 241.23 | C68: 299.37 | D68: 192.47 | E68: 237.89 | F68: 127.11 | G68: 181.46 | H68: 245.36 | I68: 410.09 | J68: 426.77 | K68: 370.79 | L68: 59 | M68: 214.77 | N68: 3006.31
A69: GAS | B69: 267.95 | C69: 327.22 | D69: 396.06 | E69: 304.94 | F69: 137.1 | G69: 230.39 | H69: 193.14 | I69: 140.68 | J69: 131.66 | K69: 129.97 | L69: 155.65 | M69: 197.49 | N69: 2612.25
A70: WATER | B70: 124.46 | C70: 328 | D70: 137.86 | E70: 175.61 | F70: 173.06 | G70: 363.22 | H70: 353.02 | I70: 363.22 | K70: 353.02 | M70: 378.52 | N70: =SUM(B70:M70) -> 2749.99
A71: INSURANCE | B71: 11396.06 | N71: 11396.06
A72: PROPERTY TAX | E72: 11474.66 | M72: 11610.54 | N72: 23085.2
A73: Total | B73: =SUM(B66:B72) -> 12579.7 | C73: =SUM(C66:C72) -> 1504.59 | D73: 1276.39 | E73: =SUM(E66:E72) -> 12743.1 | F73: =SUM(F66:F72) -> 987.27 | G73: 1325.07 | H73: 1341.52 | I73: 1463.99 | J73: 1108.43 | K73: 1403.78 | L73: 764.65 | M73: =SUM(M66:M72) -> 12951.32 | N73: 49449.81
A75: Year 2025 | B75: JAN | C75: FEB | D75: MAR | E75: APR | F75: MAY | G75: JUNE | H75: JULY | I75: AUGUST | J75: SEPTEMBER | K75: OCTOBER | L75: NOVEMBER | M75: DECEMBER
A76: Management Fee | B76: 450 | C76: 450 | D76: 450 | E76: 450 | F76: 450 | G76: 450 | H76: 450 | I76: 450 | J76: 450 | K76: 450 | L76: 450 | M76: 450 | N76: =SUM(B76:M76) -> 5400
A77: Landscape Fee | B77: 100 | C77: 100 | D77: 100 | E77: 100 | F77: 100 | G77: 100 | H77: 100 | I77: 100 | J77: 100 | K77: 100 | L77: 100 | M77: 100 | N77: 1200
A78: SCE | B78: 201.69 | C78: 250.39 | D78: 183.26 | E78: 169.49 | F78: 167.95 | G78: 306.72 | H78: 159.47 | I78: 204.76 | J78: 310.38 | K78: 232.76 | L78: 154.57 | M78: 235.59 | N78: 2577.03
A79: GAS | B79: 288.76 | C79: 274.56 | D79: 336.64 | E79: 296.93 | F79: 78.94 | G79: 187.34 | H79: 128.61 | I79: 120 | J79: 110.13 | K79: 98.56 | L79: 113.24 | M79: 192.17 | N79: 2225.88
A80: WATER | B80: 185.81 | C80: 167.96 | D80: 193.54 | E80: 187.66 | F80: 160.12 | G80: 166.24 | H80: 181.54 | I80: 163.18 | J80: 150.94 | K80: 166.24 | L80: 175.18 | M80: 245.8 | N80: 2144.21
A81: INSURANCE | B81: 12192.36 | N81: 12192.36
A82: PROPERTY TAX | E82: 11610.54 | M82: 12276.69 | N82: 23887.23
A83: Total | B83: =SUM(B76:B82) -> 13418.62 | C83: =SUM(C76:C82) -> 1242.91 | D83: 1263.44 | E83: 12814.62 | F83: 957.01 | G83: =SUM(G76:G82) -> 1210.3 | H83: 1019.62 | I83: 1037.94 | J83: =SUM(J76:J82) -> 1121.45 | K83: 1047.56 | L83: =SUM(L76:L82) -> 992.99 | M83: 13500.25 | N83: =SUM(B83:M83) -> 49626.71
A85: Year 2026 | B85: JAN | C85: FEB | D85: MAR | E85: APR | F85: MAY | G85: JUNE | H85: JULY | I85: AUGUST | J85: SEPTEMBER | K85: OCTOBER | L85: NOVEMBER | M85: DECEMBER
A86: Management Fee | B86: 450 | C86: 450 | D86: 450
A87: Landscape Fee | B87: 100 | C87: 100 | D87: 100
A88: SCE | B88: 186.71 | C88: 21.69 | D88: 260.11
A89: GAS | B89: 396.56 | C89: 186.3 | D89: 140.7
A90: WATER | B90: 123.4 | C90: 212.71 | D90: 198.99
A91: INSURANCE | B91: 10608.48
A92: PROPERTY TAX
A93: Total | B93: =SUM(B86:B92) -> 11865.15 | C93: =SUM(C86:C92) -> 970.7 | D93: =SUM(D86:D92) -> 1149.8
